fUST/lending_fUST_20240424
["ID","MTS","AMOUNT","RATE_DAILY","PERIOD"]
[323328548,1713900645515,-3007.61,0.00019178,2]
[323328550,1713900645524,-500.0,0.00019178,2]
[323328552,1713900645533,-500.0,0.00019178,2]
[323328554,1713900645543,-500.42,0.00019178,2]
[323328556,1713900645552,-500.0,0.00019178,2]
[323328558,1713900645561,-836.64,0.00019178,2]
[323328560,1713900645570,-801.97,0.00019178,2]
[323328562,1713900645580,-500.0,0.00019178,2]
[323328564,1713900645588,-151.207982,0.00019178,2]
[323328566,1713900645597,-500.0,0.00019178,2]
[323328568,1713900645607,-1046.27,0.00019178,2]
[323328570,1713900645616,-500.0,0.00019178,2]
[323328572,1713900645626,-500.0,0.00019178,2]
[323328574,1713900645635,-500.0,0.00019178,2]
[323328575,1713900645644,-1549.55,0.00019178,2]
[323328578,1713900645653,-500.0,0.00019178,2]
[323328580,1713900645662,-500.0,0.00019178,2]
[323328582,1713900645671,-500.0,0.00019178,2]
[323328584,1713900645681,-500.0,0.00019178,2]
[323328586,1713900645690,-936.1,0.00019178,2]
[323328588,1713900645698,-500.0,0.00019178,2]
[323328589,1713900645707,-500.0,0.00019178,2]
[323328591,1713900645717,-1039.46,0.00019178,2]
[323328594,1713900645726,-517.05175348,0.00019178,2]
[323328596,1713900645735,-500.0,0.00019178,2]
[323328598,1713900645744,-151.0,0.00019178,2]
[323328600,1713900645753,-500.0,0.00019178,2]
[323328602,1713900645762,-500.0,0.00019178,2]
[323328604,1713900645773,-1628.9,0.00019178,2]
[323328606,1713900645782,-500.0,0.00019178,2]
[323328608,1713900645791,-438.3743073,0.00019178,2]
[323328610,1713900645800,-500.0,0.00019178,2]
[323328612,1713900645809,-926.67,0.00019178,2]
[323328614,1713900645819,-474.81210823,0.00019178,2]
[323328616,1713900645828,-500.0,0.00019178,2]
[323328618,1713900645838,-500.0,0.00019178,2]
[323328620,1713900645847,-500.0,0.00019178,2]
[323328622,1713900645858,-500.0,0.00019178,2]
[323328624,1713900645867,-500.0,0.00019178,2]
[323328626,1713900645876,-500.0,0.00019178,2]
[323328628,1713900645885,-1477.17,0.00019178,2]
[323328630,1713900645894,-888.41,0.00019178,2]
[323328632,1713900645903,-1606.9,0.00019178,2]
[323328634,1713900645912,-724.19,0.00019178,2]
[323328636,1713900645921,-500.0,0.00019178,2]
[323328638,1713900645930,-500.0,0.00019178,2]
[323328640,1713900645939,-500.0,0.00019178,2]
[323328642,1713900645948,-2253.37,0.00019178,2]
[323328644,1713900645956,-500.0,0.00019178,2]
[323328646,1713900645966,-500.0,0.00019178,2]
[323328648,1713900645975,-500.0,0.00019178,2]
[323328650,1713900645984,-500.0,0.00019178,2]
[323328652,1713900645994,-500.0,0.00019178,2]
[323328654,1713900646003,-500.0,0.00019178,2]
[323328656,1713900646012,-500.0,0.00019178,2]
[323328658,1713900646021,-500.0,0.00019178,2]
[323328660,1713900646030,-500.0,0.00019178,2]
[323328662,1713900646040,-428.23458307,0.00019178,2]
[323328664,1713900646049,-654.38,0.00019178,2]
[323328666,1713900646058,-500.0,0.00019178,2]
[323328668,1713900646067,-500.0,0.00019178,2]
[323328670,1713900646075,-500.0,0.00019178,2]
[323328672,1713900646084,-1481.12,0.00019178,2]
[323328674,1713900646093,-1794.4,0.00019178,2]
[323328676,1713900646102,-500.0,0.00019178,2]
[323328678,1713900646114,-537.03663541,0.00019178,2]
[323328680,1713900646122,-1798.16,0.00019178,2]
[323328682,1713900646131,-500.0,0.00019178,2]
[323328683,1713900646141,-1087.11,0.00019178,2]
[323328685,1713900646150,-500.0,0.00019178,2]
[323328688,1713900646159,-500.0,0.00019178,2]
[323328689,1713900646168,-500.0,0.00019178,2]
[323328691,1713900646177,-500.0,0.00019178,2]
[323328694,1713900646187,-500.0,0.00019178,2]
[323328698,1713900646196,-500.0,0.00019178,2]
[323328701,1713900646206,-500.0,0.00019178,2]
[323328705,1713900646214,-500.0,0.00019178,2]
[323328707,1713900646223,-500.0,0.00019178,2]
[323328709,1713900646232,-151.0,0.00019178,2]
[323328711,1713900646240,-500.0,0.00019178,2]
[323328713,1713900646249,-151.0,0.00019178,2]
[323328715,1713900646258,-813.16,0.00019178,2]
[323328716,1713900646270,-500.0,0.00019178,2]
[323328718,1713900646279,-1202.61,0.00019178,2]
[323328720,1713900646288,-500.0,0.00019178,2]
[323328722,1713900646297,-500.0,0.00019178,2]
[323328724,1713900646307,-187.01030528,0.00019178,2]
[323328726,1713900646317,-500.0,0.00019178,2]
[323328728,1713900646326,-656.08,0.00019178,2]
[323328730,1713900646335,-500.0,0.00019178,2]
[323328732,1713900646345,-255.709387,0.00019178,2]
[323328735,1713900646355,-255.709387,0.00019178,2]
[323328736,1713900646364,-500.0,0.00019178,2]
[323328739,1713900646373,-500.0,0.00019178,2]
[323328740,1713900646382,-500.0,0.00019178,2]
[323328743,1713900646392,-500.0,0.00019178,2]
[323328744,1713900646401,-500.0,0.00019178,2]
[323328746,1713900646410,-500.0,0.00019178,2]
[323328748,1713900646419,-500.0,0.00019178,2]
[323328750,1713900646428,-500.0,0.00019178,2]
[323328753,1713900646437,-500.0,0.00019178,2]
[323328754,1713900646446,-533.95,0.00019178,2]
[323328756,1713900646456,-1215.65,0.00019178,2]
[323328759,1713900646465,-151.0,0.00019178,2]
[323328761,1713900646475,-1011.29,0.00019178,2]
[323328763,1713900646484,-1467.31,0.00019178,2]
[323328765,1713900646493,-500.0,0.00019178,2]
[323328767,1713900646503,-676.21,0.00019178,2]
[323328769,1713900646512,-7241.9,0.00019178,2]
[323328771,1713900646520,-328.77712512,0.00019178,2]
[323328773,1713900646529,-500.0,0.00019178,2]
[323328775,1713900646538,-500.0,0.00019178,2]
[323328777,1713900646547,-500.0,0.00019178,2]
[323328779,1713900646556,-569.98,0.00019178,2]
[323328781,1713900646565,-500.0,0.00019178,2]
[323328783,1713900646574,-500.0,0.00019178,2]
[323328785,1713900646583,-500.0,0.00019178,2]
[323328787,1713900646592,-151.0,0.00019178,2]
[323328789,1713900646601,-151.0,0.00019178,2]
[323328790,1713900646611,-151.0,0.00019178,2]
[323328793,1713900646621,-151.0,0.00019178,2]
[323328795,1713900646629,-151.0,0.00019178,2]
[323328797,1713900646638,-151.0,0.00019178,2]
[323328798,1713900646647,-151.0,0.00019178,2]
[323328801,1713900646657,-151.0,0.00019178,2]
[323328802,1713900646667,-151.0,0.00019178,2]
[323328804,1713900646676,-500.0,0.00019178,2]
[323328807,1713900646686,-151.0,0.00019178,2]
[323328809,1713900646695,-500.0,0.00019178,2]
[323328811,1713900646704,-151.0,0.00019178,2]
[323328812,1713900646713,-1825.78,0.00019178,2]
[323328823,1713900646798,-10173.53,0.00019178,2]
[323328825,1713900646807,-9669.96,0.00019178,2]
[323328827,1713900646816,-500.0,0.00019178,2]
[323328829,1713900646825,-396.16177853,0.00019178,2]
[323328831,1713900646834,-500.0,0.00019178,2]
[323328832,1713900646843,-500.0,0.00019178,2]
[323328834,1713900646852,-500.0,0.00019178,2]
[323328837,1713900646863,-2255.71,0.00019178,2]
[323328838,1713900646872,-421.21673132,0.00019178,2]
[323328840,1713900646881,-502.47556512,0.00019178,2]
[323328842,1713900646890,-500.0,0.00019178,2]
[323328844,1713900646899,-1139.82,0.00019178,2]
[323328847,1713900646909,-500.0,0.00019178,2]
[323328849,1713900646918,-1054.66,0.00019178,2]
[323328851,1713900646927,-500.0,0.00019178,2]
[323328852,1713900646936,-500.0,0.00019178,2]
[323328855,1713900646945,-288.45903738,0.00019178,2]
[323328857,1713900646955,-1868.68,0.00019178,2]
[323328859,1713900646964,-500.0,0.00019178,2]
[323328861,1713900646974,-500.0,0.00019178,2]
[323328863,1713900646984,-151.0,0.00019178,2]
[323328865,1713900646993,-151.281226,0.00019178,2]
[323328867,1713900647002,-500.0,0.00019178,2]
[323328869,1713900647011,-500.0,0.00019178,2]
[323328871,1713900647020,-649.23,0.00019178,2]
[323328873,1713900647029,-500.0,0.00019178,2]
[323328875,1713900647038,-545.4,0.00019178,2]
[323328877,1713900647047,-500.0,0.00019178,2]
[323328879,1713900647056,-151.0,0.00019178,2]
[323328881,1713900647066,-500.0,0.00019178,2]
[323328883,1713900647075,-8127.46,0.00019178,2]
[323328885,1713900647084,-500.0,0.00019178,2]
[323328887,1713900647093,-500.0,0.00019178,2]
[323328889,1713900647102,-2170.17,0.00019178,2]
[323328891,1713900647115,-500.0,0.00019178,2]
[323328893,1713900647123,-500.0,0.00019178,2]
[323328895,1713900647132,-500.0,0.00019178,2]
[323328897,1713900647142,-500.0,0.00019178,2]
[323328899,1713900647151,-500.0,0.00019178,2]
[323328901,1713900647161,-500.0,0.00019178,2]
[323328903,1713900647170,-500.0,0.00019178,2]
[323328905,1713900647179,-500.0,0.00019178,2]
[323328907,1713900647188,-5220.92209464,0.00019178,2]
[323328954,1713900647638,-1382.80790536,0.00019178,2]
[323328956,1713900647648,-1058.71,0.00019178,2]
[323328958,1713900647657,-500.0,0.00019178,2]
[323328960,1713900647666,-500.0,0.00019178,2]
[323328962,1713900647675,-151.0,0.00019178,2]
[323328964,1713900647684,-500.0,0.00019178,2]
[323328966,1713900647693,-500.0,0.00019178,2]
[323328968,1713900647703,-500.0,0.00019178,2]
[323328970,1713900647712,-500.0,0.00019178,2]
[323328972,1713900647721,-814.3,0.00019178,2]
[323328974,1713900647729,-4873.79,0.00019178,2]
[323328976,1713900647741,-295.17016728,0.00019178,2]
[323328978,1713900647749,-500.0,0.00019178,2]
[323328980,1713900647759,-500.0,0.00019178,2]
[323328982,1713900647768,-1347.18,0.00019178,2]
[323328983,1713900647777,-500.0,0.00019178,2]
[323328986,1713900647786,-500.0,0.00019178,2]
[323328987,1713900647795,-1108.01,0.00019178,2]
[323328989,1713900647804,-500.0,0.00019178,2]
[323328991,1713900647813,-507.06,0.00019178,2]
[323328993,1713900647822,-500.0,0.00019178,2]
[323328995,1713900647832,-500.0,0.00019178,2]
[323328997,1713900647842,-500.0,0.00019178,2]
[323329000,1713900647851,-500.0,0.00019178,2]
[323329002,1713900647866,-531.48826253,0.00019178,2]
[323329003,1713900647875,-500.0,0.00019178,2]
[323329005,1713900647884,-500.0,0.00019178,2]
[323329018,1713900647985,-1337.64,0.00019178,2]
[323329020,1713900647994,-500.0,0.00019178,2]
[323329022,1713900648005,-516.05,0.00019178,2]
[323329024,1713900648015,-799.29,0.00019178,2]
[323329026,1713900648024,-500.0,0.00019178,2]
[323329028,1713900648033,-4179.15,0.00019178,2]
[323329030,1713900648043,-500.0,0.00019178,2]
[323329032,1713900648053,-500.0,0.00019178,2]
[323329034,1713900648062,-500.0,0.00019178,2]
[323329036,1713900648071,-1585.41,0.00019178,2]
[323329038,1713900648081,-515.11,0.00019178,2]
[323329039,1713900648091,-500.0,0.00019178,2]
[323329041,1713900648101,-500.0,0.00019178,2]
[323329044,1713900648119,-500.0,0.00019178,2]
[323329046,1713900648129,-921.0,0.00019178,2]
[323329048,1713900648139,-218.72863342,0.00019178,2]
[323329050,1713900648149,-500.0,0.00019178,2]
[323329052,1713900648159,-2332.53,0.00019178,2]
[323329054,1713900648169,-500.0,0.00019178,2]
[323329056,1713900648178,-500.0,0.00019178,2]
[323329058,1713900648189,-500.0,0.00019178,2]
[323329060,1713900648198,-558.4683437,0.00019178,2]
[323329062,1713900648209,-500.0,0.00019178,2]
[323329064,1713900648218,-500.0,0.00019178,2]
[323329066,1713900648227,-500.0,0.00019178,2]
[323329068,1713900648236,-500.0,0.00019178,2]
[323329070,1713900648245,-500.0,0.00019178,2]
[323329072,1713900648254,-500.0,0.00019178,2]
[323329074,1713900648268,-506.85,0.00019178,2]
[323329076,1713900648277,-500.0,0.00019178,2]
[323329078,1713900648286,-500.0,0.00019178,2]
[323329080,1713900648295,-161.79135625,0.00019178,2]
[323329082,1713900648305,-2503.85,0.00019178,2]
[323329084,1713900648313,-880.08,0.00019178,2]
[323329085,1713900648322,-257.39117167,0.00019178,2]
[323329087,1713900648332,-777.18,0.00019178,2]
[323329089,1713900648342,-500.0,0.00019178,2]
[323329091,1713900648350,-500.0,0.00019178,2]
[323329093,1713900648365,-500.0,0.00019178,2]
[323329095,1713900648374,-1868.93,0.00019178,2]
[323329097,1713900648383,-798.2,0.00019178,2]
[323329099,1713900648394,-500.0,0.00019178,2]
[323329101,1713900648403,-500.17158671,0.00019178,2]
[323329103,1713900648412,-500.0,0.00019178,2]
[323329105,1713900648421,-500.0,0.00019178,2]
[323329107,1713900648430,-500.0,0.00019178,2]
[323329109,1713900648438,-501.81796725,0.00019178,2]
[323329111,1713900648447,-500.0,0.00019178,2]
[323329113,1713900648456,-22142.41,0.00019178,2]
[323329115,1713900648464,-592.89939903,0.00019178,2]
[323329117,1713900648473,-500.0,0.00019178,2]
[323329119,1713900648482,-500.0,0.00019178,2]
[323329121,1713900648491,-500.0,0.00019178,2]
[323329123,1713900648502,-500.0,0.00019178,2]
[323329125,1713900648511,-500.0,0.00019178,2]
[323329127,1713900648519,-500.0,0.00019178,2]
[323329129,1713900648528,-500.0,0.00019178,2]
[323329131,1713900648537,-500.0,0.00019178,2]
[323329133,1713900648546,-500.0,0.00019178,2]
[323329135,1713900648555,-500.0,0.00019178,2]
[323329137,1713900648563,-500.0,0.00019178,2]
[323329139,1713900648572,-500.0,0.00019178,2]
[323329141,1713900648581,-456.2951033,0.00019178,2]
[323329143,1713900648590,-592.4,0.00019178,2]
[323329144,1713900648599,-500.0,0.00019178,2]
[323329147,1713900648611,-10682.28,0.00019178,2]
[323329149,1713900648621,-500.0,0.00019178,2]
[323329150,1713900648630,-500.0,0.00019178,2]
[323329153,1713900648639,-500.0,0.00019178,2]
[323329155,1713900648648,-722.555584,0.00019178,2]
[323329157,1713900648658,-722.555584,0.00019178,2]
[323329159,1713900648667,-722.555584,0.00019178,2]
[323329160,1713900648677,-6686.91,0.00019178,2]
[323329162,1713900648686,-500.0,0.00019178,2]
[323329164,1713900648695,-500.0,0.00019178,2]
[323329167,1713900648704,-1003.97,0.00019178,2]
[323329168,1713900648713,-722.555584,0.00019178,2]
[323329171,1713900648722,-736.93,0.00019178,2]
[323329172,1713900648732,-722.555584,0.00019178,2]
[323329174,1713900648741,-722.555584,0.00019178,2]
[323329176,1713900648751,-1980.41,0.00019178,2]
[323329178,1713900648760,-151.0,0.00019178,2]
[323329180,1713900648769,-151.0,0.00019178,2]
[323329182,1713900648778,-500.0,0.00019178,2]
[323329184,1713900648787,-151.0,0.00019178,2]
[323329187,1713900648797,-500.0,0.00019178,2]
[323329189,1713900648806,-6217.18,0.00019178,2]
[323329191,1713900648816,-151.0,0.00019178,2]
[323329193,1713900648825,-151.0,0.00019178,2]
[323329195,1713900648835,-500.0,0.00019178,2]
[323329197,1713900648844,-500.0,0.00019178,2]
[323329199,1713900648853,-8972.05,0.00019178,2]
[323329201,1713900648865,-500.0,0.00019178,2]
[323329203,1713900648874,-223.988081,0.00019178,2]
[323329205,1713900648882,-223.988081,0.00019178,2]
[323329207,1713900648891,-500.0,0.00019178,2]
[323329209,1713900648900,-500.0,0.00019178,2]
[323329211,1713900648910,-500.0,0.00019178,2]
[323329213,1713900648918,-500.0,0.00019178,2]
[323329215,1713900648927,-223.988081,0.00019178,2]
[323329216,1713900648936,-223.988081,0.00019178,2]
[323329219,1713900648946,-500.0,0.00019178,2]
[323329221,1713900648956,-500.0,0.00019178,2]
[323329223,1713900648965,-500.0,0.00019178,2]
[323329225,1713900648974,-500.0,0.00019178,2]
[323329226,1713900648983,-500.0,0.00019178,2]
[323329229,1713900648992,-500.0,0.00019178,2]
[323329231,1713900649002,-1611.78,0.00019178,2]
[323329233,1713900649011,-500.0,0.00019178,2]
[323329234,1713900649021,-1850.47,0.00019178,2]
[323329237,1713900649030,-500.0,0.00019178,2]
[323329238,1713900649039,-500.0,0.00019178,2]
[323329240,1713900649049,-2000.0,0.00019178,2]
[323329242,1713900649058,-162.923132,0.00019178,2]
[323329244,1713900649067,-162.73458,0.00019178,2]
[323329246,1713900649076,-160.094856,0.00019178,2]
[323329248,1713900649086,-5000.0,0.000193,2]
[323329250,1713900649096,-151.0,0.000193,2]
[323329252,1713900649105,-151.0,0.000193,2]
[323329254,1713900649116,-153.0,0.000193,2]
[323329256,1713900649126,-153.0,0.000193,2]
[323329258,1713900649135,-153.0,0.000193,2]
[323329259,1713900649145,-428.761,0.00019376,2]
[323329260,1713900649154,-306.0,0.000194,2]
[323329261,1713900649164,-153.0,0.000194,2]
[323329262,1713900649173,-153.0,0.000194,2]
[323329263,1713900649183,-153.0,0.000194,2]
[323329264,1713900649193,-827.67238152,0.0001945,2]
[323329265,1713900649202,-768.18875681,0.0001945,2]
[323329266,1713900649211,-616.20110095,0.0001945,2]
[323329267,1713900649221,-408.57291394,0.0001945,2]
[323329268,1713900649230,-500.0,0.00019452,2]
[323329269,1713900649239,-500.0,0.00019452,2]
[323329270,1713900649248,-500.0,0.00019452,2]
[323329271,1713900649258,-2120.91,0.00019452,2]
[323329274,1713900649338,-500.0,0.00019452,2]
[323329276,1713900649348,-500.0,0.00019452,2]
[323329278,1713900649359,-500.0,0.00019452,2]
[323329279,1713900649368,-500.0,0.00019452,2]
[323329281,1713900649378,-500.0,0.00019452,2]
[323329283,1713900649387,-500.0,0.00019452,2]
[323329285,1713900649395,-500.0,0.00019452,2]
[323329287,1713900649405,-500.0,0.00019452,2]
[323329289,1713900649414,-500.0,0.00019452,2]
[323329291,1713900649423,-632.45457464,0.00019452,2]
[323329293,1713900649432,-500.0,0.00019452,2]
[323329295,1713900649441,-1003.75,0.00019452,2]
[323329297,1713900649451,-500.0,0.00019452,2]
[323329299,1713900649461,-433.2144794,0.00019452,2]
[323329301,1713900649469,-500.0,0.00019452,2]
[323329303,1713900649481,-500.0,0.00019452,2]
[323329305,1713900649501,-500.0,0.00019452,2]
[323329307,1713900649510,-500.0,0.00019452,2]
[323329309,1713900649519,-535.39859687,0.00019452,2]
[323329311,1713900649529,-210.7440754,0.00019452,2]
[323329313,1713900649538,-500.0,0.00019452,2]
[323329315,1713900649547,-500.0,0.00019452,2]
[323329317,1713900649557,-995.61,0.00019452,2]
[323329319,1713900649566,-681.99,0.00019452,2]
[323329321,1713900649575,-1248.66,0.00019452,2]
[323329323,1713900649585,-500.0,0.00019452,2]
[323329325,1713900649594,-500.0,0.00019452,2]
[323329327,1713900649603,-500.0,0.00019452,2]
[323329329,1713900649619,-500.0,0.00019452,2]
[323329331,1713900649635,-500.0,0.00019452,2]
[323329333,1713900649644,-500.0,0.00019452,2]
[323329335,1713900649653,-500.0,0.00019452,2]
[323329337,1713900649666,-500.0,0.00019452,2]
[323329339,1713900649675,-500.0,0.00019452,2]
[323329341,1713900649684,-240.62791778,0.00019452,2]
[323329343,1713900649693,-500.0,0.00019452,2]
[323329345,1713900649703,-500.0,0.00019452,2]
[323329347,1713900649712,-500.0,0.00019452,2]
[323329349,1713900649722,-617.16,0.00019452,2]
[323329351,1713900649731,-500.0,0.00019452,2]
[323329353,1713900649740,-972.18,0.00019452,2]
[323329355,1713900649749,-500.0,0.00019452,2]
[323329357,1713900649758,-500.0,0.00019452,2]
[323329359,1713900649767,-500.0,0.00019452,2]
[323329361,1713900649777,-500.0,0.00019452,2]
[323329363,1713900649786,-500.0,0.00019452,2]
[323329365,1713900649795,-500.0,0.00019452,2]
[323329367,1713900649804,-383.93873186,0.00019452,2]
[323329369,1713900649813,-500.0,0.00019452,2]
[323329371,1713900649822,-500.0,0.00019452,2]
[323329373,1713900649831,-526.78,0.00019452,2]
[323329375,1713900649840,-500.0,0.00019452,2]
[323329377,1713900649849,-464.10029358,0.00019452,2]
[323329379,1713900649860,-812.7,0.00019452,2]
[323329381,1713900649869,-500.0,0.00019452,2]
[323329383,1713900649878,-500.0,0.00019452,2]
[323329385,1713900649888,-500.0,0.00019452,2]
[323329387,1713900649896,-500.0,0.00019452,2]
[323329389,1713900649905,-151.0,0.00019452,2]
[323329391,1713900649914,-151.0,0.00019452,2]
[323329393,1713900649923,-194.91055213,0.00019452,2]
[323329395,1713900649932,-500.0,0.00019452,2]
[323329397,1713900649941,-500.0,0.00019452,2]
[323329399,1713900649950,-151.0,0.00019452,2]
[323329401,1713900649960,-164.710514,0.00019452,2]
[323329403,1713900649968,-500.0,0.00019452,2]
[323329405,1713900649977,-500.0,0.00019452,2]
[323329407,1713900649986,-2061.85,0.00019452,2]
[323329409,1713900649995,-500.0,0.00019452,2]
[323329410,1713900650005,-500.0,0.00019452,2]
[323329412,1713900650014,-500.0,0.00019452,2]
[323329414,1713900650023,-623.67,0.00019452,2]
[323329417,1713900650033,-500.0,0.00019452,2]
[323329418,1713900650042,-500.0,0.00019452,2]
[323329420,1713900650051,-500.0,0.00019452,2]
[323329423,1713900650061,-1606.4,0.00019452,2]
[323329425,1713900650071,-500.0,0.00019452,2]
[323329427,1713900650080,-500.0,0.00019452,2]
[323329429,1713900650089,-510.01925707,0.00019452,2]
[323329431,1713900650099,-500.0,0.00019452,2]
[323329432,1713900650108,-500.0,0.00019452,2]
[323329434,1713900650117,-500.0,0.00019452,2]
[323329436,1713900650127,-500.0,0.00019452,2]
[323329438,1713900650137,-500.0,0.00019452,2]
[323329440,1713900650146,-859.25,0.00019452,2]
[323329442,1713900650156,-500.0,0.00019452,2]
[323329444,1713900650165,-1160.46,0.00019452,2]
[323329447,1713900650175,-500.0,0.00019452,2]
[323329448,1713900650184,-501.10591853,0.00019452,2]
[323329450,1713900650193,-500.0,0.00019452,2]
[323329452,1713900650202,-1446.72,0.00019452,2]
[323329454,1713900650211,-500.0,0.00019452,2]
[323329456,1713900650220,-500.0,0.00019452,2]
[323329458,1713900650229,-500.0,0.00019452,2]
[323329460,1713900650239,-500.0,0.00019452,2]
[323329462,1713900650248,-876.21,0.00019452,2]
[323329464,1713900650258,-1162.49,0.00019452,2]
[323329466,1713900650269,-500.0,0.00019452,2]
[323329468,1713900650279,-500.0,0.00019452,2]
[323329470,1713900650289,-500.0,0.00019452,2]
[323329472,1713900650298,-893.12,0.00019452,2]
[323329474,1713900650307,-500.0,0.00019452,2]
[323329476,1713900650317,-892.61,0.00019452,2]
[323329478,1713900650326,-501.92,0.00019452,2]
[323329480,1713900650336,-564.44,0.00019452,2]
[323329482,1713900650346,-500.0,0.00019452,2]
[323329484,1713900650356,-500.0,0.00019452,2]
[323329486,1713900650366,-495.20162556,0.00019452,2]
[323329488,1713900650375,-642.46,0.00019452,2]
[323329490,1713900650384,-500.0,0.00019452,2]
[323329491,1713900650393,-500.0,0.00019452,2]
[323329492,1713900650402,-500.0,0.00019452,2]
[323329493,1713900650411,-500.0,0.00019452,2]
[323329494,1713900650421,-500.0,0.00019452,2]
[323329495,1713900650430,-500.0,0.00019452,2]
[323329496,1713900650440,-579.58264124,0.00019452,2]
[323329497,1713900650450,-3007.61,0.00019452,2]
[323329499,1713900650459,-500.0,0.00019452,2]
[323329500,1713900650469,-500.0,0.00019452,2]
[323329502,1713900650479,-500.42,0.00019452,2]
[323329504,1713900650488,-500.0,0.00019452,2]
[323329505,1713900650497,-836.64,0.00019452,2]
[323329506,1713900650507,-801.97,0.00019452,2]
[323329507,1713900650516,-500.0,0.00019452,2]
[323329508,1713900650526,-500.0,0.00019452,2]
[323329509,1713900650617,-1046.27,0.00019452,2]
[323329510,1713900650628,-500.0,0.00019452,2]
[323329511,1713900650637,-500.0,0.00019452,2]
[323329512,1713900650647,-500.0,0.00019452,2]
[323329513,1713900650657,-1549.55,0.00019452,2]
[323329514,1713900650669,-500.0,0.00019452,2]
[323329515,1713900650679,-500.0,0.00019452,2]
[323329516,1713900650688,-500.0,0.00019452,2]
[323329517,1713900650698,-500.0,0.00019452,2]
[323329518,1713900650708,-936.1,0.00019452,2]
[323329519,1713900650718,-179.33630946,0.00019452,2]
[323329520,1713900650729,-500.0,0.00019452,2]
[323329521,1713900650738,-1039.46,0.00019452,2]
[323329522,1713900650748,-500.0,0.00019452,2]
[323329523,1713900650757,-500.0,0.00019452,2]
[323329524,1713900650767,-500.0,0.00019452,2]
[323329525,1713900650777,-1628.9,0.00019452,2]
[323329526,1713900650786,-500.0,0.00019452,2]
[323329527,1713900650796,-500.0,0.00019452,2]
[323329528,1713900650805,-926.67,0.00019452,2]
[323329529,1713900650815,-500.0,0.00019452,2]
[323329530,1713900650826,-500.0,0.00019452,2]
[323329531,1713900650836,-500.0,0.00019452,2]
[323329532,1713900650846,-500.0,0.00019452,2]
[323329533,1713900650856,-500.0,0.00019452,2]
[323329534,1713900650871,-500.0,0.00019452,2]
[323329535,1713900650881,-1477.17,0.00019452,2]
[323329536,1713900650890,-888.41,0.00019452,2]
[323329537,1713900650900,-1606.9,0.00019452,2]
[323329538,1713900650910,-724.19,0.00019452,2]
[323329540,1713900650920,-500.0,0.00019452,2]
[323329541,1713900650929,-500.0,0.00019452,2]
[323329543,1713900650938,-500.0,0.00019452,2]
[323329545,1713900650948,-2253.37,0.00019452,2]
[323329546,1713900650957,-500.0,0.00019452,2]
[323329548,1713900650967,-654.38,0.00019452,2]
[323329550,1713900650976,-500.0,0.00019452,2]
[323329552,1713900650985,-500.0,0.00019452,2]
[323329553,1713900650994,-1481.12,0.00019452,2]